[Event "Velká cena Novohradska - A"]
[Site "Nové Hrady, Czech Republic"]
[Date "2024.10.12"]
[Round "6.2"]
[White "Gregor, Alexandr"]
[Black "Postl, František"]
[Result "1-0"]
[TimeControl "2x20min+10s/tah"]
[WhiteFideId "23735813"]
[BlackFideId "23709448"]
[WhiteElo "1813"]
[BlackElo "1514"]

1. e4 {[%clk 00:20:08]} e5 {[%clk 00:20:19]} 2. Nf3 {[%clk 00:20:17]} Nf6
{[%clk 00:20:28]} 3. d3 {[%clk 00:20:11]} d6 {[%clk 00:20:36]} 4. c4 {[%clk
00:20:20]} c5 {[%clk 00:20:45]} 5. Nc3 {[%clk 00:20:26]} Bg4 {[%clk 00:20:51]}
6. h3 {[%clk 00:20:28]} Bh5 {[%clk 00:20:58]} 7. g4 {[%clk 00:19:58]} Bg6
{[%clk 00:21:07]} 8. Bg5 {[%clk 00:20:07]} h6 {[%clk 00:21:03]} 9. Bxf6 {[%clk
00:20:04]} Qxf6 {[%clk 00:21:11]} 10. Nd5 {[%clk 00:20:10]} Qd8 {[%clk
00:21:13]} 11. Be2 {[%clk 00:20:02]} Nc6 {[%clk 00:20:48]} 12. Qa4 {[%clk
00:19:51]} Be7 {[%clk 00:20:42]} 13. Nxe7 {[%clk 00:19:47]} Qxe7 {[%clk
00:20:50]} 14. h4 {[%clk 00:18:55]} h5 {[%clk 00:20:32]} 15. g5 {[%clk
00:16:50]} O-O {[%clk 00:19:52]} 16. O-O-O {[%clk 00:15:14]} Nd8 {[%clk
00:19:20]} 17. Rdg1 {[%clk 00:15:00]} Ne6 {[%clk 00:19:27]} 18. Qd1 {[%clk
00:13:47]} Nf4 {[%clk 00:19:27]} 19. Ne1 {[%clk 00:13:53]} f5 {[%clk 00:19:17]}
20. gxf6 {[%clk 00:12:10]} Rxf6 {[%clk 00:19:21]} 21. Ng2 {[%clk 00:12:15]} Qf7
{[%clk 00:18:42]} {[%emt 00:00:40]} 22. Nxf4 {[%clk 00:12:19]} {[%emt
00:00:06]} Rxf4 {[%clk 00:18:46]} {[%emt 00:00:05]} 23. Rg5 {[%clk 00:11:18]}
{[%emt 00:01:11]} Rxf2 {[%clk 00:17:23]} {[%emt 00:01:34]} 24. Rhg1 {[%clk
00:11:14]} {[%emt 00:00:13]} Bh7 {[%emt 00:01:54]} 25. Rxg7+ {[%clk 00:10:47]}
{[%emt 00:00:34]} Qxg7 {[%clk 00:15:51]} {[%emt 00:00:02]} 26. Rxg7+ {[%clk
00:10:55]} {[%emt 00:00:02]} Kxg7 {[%clk 00:16:00]} 27. Qg1+ {[%clk 00:11:04]}
{[%emt 00:00:02]} 1-0

[Event "Velká cena Novohradska - A"]
[Site "Nové Hrady, Czech Republic"]
[Date "2024.10.12"]
[Round "6.3"]
[White "Slonek, Richard"]
[Black "Šebesta, Marek"]
[Result "1-0"]
[TimeControl "2x20min+10s/tah"]
[WhiteFideId "23744553"]
[BlackFideId "23765119"]
[WhiteElo "1524"]
[BlackElo "1707"]

1. e4 {[%clk 00:20:18]} e5 {[%clk 00:20:19]} 2. Nf3 {[%clk 00:20:26]} Nc6
{[%clk 00:20:27]} 3. Bc4 {[%clk 00:20:34]} Nf6 {[%clk 00:20:35]} 4. d3 {[%clk
00:20:43]} Bc5 {[%clk 00:20:38]} 5. c3 {[%clk 00:20:52]} d6 {[%clk 00:20:44]} 6.
Nbd2 {[%clk 00:21:01]} a6 {[%clk 00:20:53]} 7. Nf1 {[%clk 00:21:00]} O-O {[%clk
00:20:58]} 8. Qe2 {[%clk 00:21:02]} Na5 {[%clk 00:20:58]} 9. Bb3 {[%clk
00:21:00]} Nxb3 {[%clk 00:21:07]} 10. axb3 {[%clk 00:21:09]} Be6 {[%clk
00:21:05]} 11. b4 {[%clk 00:21:11]} Ba7 {[%clk 00:21:12]} 12. h4 {[%clk
00:21:17]} c6 {[%clk 00:20:27]} 13. h5 {[%clk 00:21:13]} h6 {[%clk 00:20:34]}
14. Ng3 {[%clk 00:21:04]} Bg4 {[%clk 00:20:25]} 15. Nf5 {[%clk 00:20:22]} Qd7
{[%clk 00:20:00]} 16. Ne3 {[%clk 00:19:11]} Be6 {[%clk 00:19:02]} 17. Nh4
{[%clk 00:18:42]} Nxh5 {[%clk 00:18:36]} 18. Qxh5 {[%clk 00:18:32]} d5 {[%clk
00:17:08]} 19. Nef5 {[%clk 00:18:35]} dxe4 {[%clk 00:16:25]} 20. Qg4 {[%clk
00:18:23]} g6 {[%clk 00:15:02]} {[%emt 00:00:27]} 21. dxe4 {[%clk 00:18:27]}
{[%emt 00:00:09]} Kh7 {[%clk 00:14:47]} {[%emt 00:00:25]} 22. Nxg6 {[%clk
00:17:37]} {[%emt 00:01:00]} Bxf5 {[%clk 00:14:14]} {[%emt 00:00:44]} 23. Rxh6+
{[%clk 00:17:44]} {[%emt 00:00:02]} Kg7 {[%clk 00:14:13]} {[%emt 00:00:09]} 24.
exf5 {[%emt 00:01:27]} Rfd8 {[%clk 00:12:39]} {[%emt 00:00:27]} 25. Nxe5+
{[%clk 00:17:45]} {[%emt 00:00:11]} Kf8 {[%clk 00:12:46]} {[%emt 00:00:03]} 26.
Nxd7+ {[%clk 00:17:51]} {[%emt 00:00:05]} Ke7 {[%clk 00:12:45]} {[%emt
00:00:11]} 27. Bg5+ {[%clk 00:17:53]} {[%emt 00:00:08]} Kxd7 {[%clk 00:12:52]}
{[%emt 00:00:03]} 28. Bxd8 {[%clk 00:18:00]} {[%emt 00:00:02]} Rxd8 {[%clk
00:12:58]} {[%emt 00:00:04]} 29. Rd1+ {[%clk 00:18:09]} Kc7 {[%emt 00:00:04]}
30. Rxd8 {[%clk 00:18:16]} Kxd8 {[%clk 00:13:16]} 31. Qg8+ {[%clk 00:18:16]}
{[%emt 00:00:12]} Kc7 {[%clk 00:13:21]} {[%emt 00:00:04]} 32. Qxf7+ {[%clk
00:18:24]} Kb6 {[%clk 00:13:30]} 33. Qc4 {[%clk 00:18:22]} {[%emt 00:00:15]}
Kc7 {[%clk 00:13:28]} {[%emt 00:00:12]} 34. f6 {[%clk 00:18:27]} {[%emt
00:00:06]} b5 {[%clk 00:13:36]} {[%emt 00:00:02]} 35. Qf4+ {[%clk 00:18:29]}
{[%emt 00:00:07]} Kb6 {[%clk 00:13:41]} {[%emt 00:00:04]} 36. Qd4+ {[%clk
00:18:32]} {[%emt 00:00:08]} Kb7 {[%clk 00:13:49]} {[%emt 00:00:03]} 37. Rh7+
{[%clk 00:18:41]} Kc8 {[%clk 00:13:57]} {[%emt 00:00:02]} 38. Qxa7 {[%clk
00:18:47]} {[%emt 00:00:04]} c5 {[%clk 00:14:06]} 39. Rh8# {[%clk 00:18:55]}
{[%emt 00:00:02]} 1-0

[Event "Velká cena Novohradska - A"]
[Site "Nové Hrady, Czech Republic"]
[Date "2024.10.12"]
[Round "6.4"]
[White "Rendl, Luboš"]
[Black "Polanský, Matěj"]
[Result "1-0"]
[TimeControl "2x20min+10s/tah"]
[WhiteFideId "23750197"]
[BlackFideId "23741872"]
[WhiteElo "1860"]
[BlackElo "1475"]

1. e4 {[%clk 00:20:14]} e5 {[%clk 00:20:19]} 2. Nf3 {[%clk 00:20:22]} Nc6
{[%clk 00:20:28]} 3. Bb5 {[%clk 00:20:25]} Nf6 {[%clk 00:19:56]} 4. O-O {[%clk
00:20:27]} Bb4 {[%clk 00:19:40]} 5. c3 {[%clk 00:20:23]} Ba5 {[%clk 00:19:48]}
6. Bxc6 {[%clk 00:19:59]} bxc6 {[%clk 00:19:27]} 7. Nxe5 {[%clk 00:20:01]} O-O
{[%clk 00:18:58]} 8. Nc4 {[%clk 00:19:00]} Bb6 {[%clk 00:18:52]} 9. Re1 {[%clk
00:18:09]} Re8 {[%clk 00:18:04]} 10. e5 {[%clk 00:17:44]} Nd5 {[%clk 00:16:48]}
11. Nxb6 {[%clk 00:17:28]} cxb6 {[%clk 00:16:39]} 12. d4 {[%clk 00:17:25]} Ba6
{[%clk 00:16:08]} 13. Nd2 {[%clk 00:15:47]} d6 {[%clk 00:15:18]} 14. Nf3 {[%clk
00:11:53]} {[%emt 00:01:41]} Qd7 {[%clk 00:13:03]} {[%emt 00:02:26]} 15. Bd2
{[%clk 00:11:06]} {[%emt 00:00:55]} Rad8 {[%clk 00:12:28]} {[%emt 00:00:46]} 16.
Qc2 {[%clk 00:10:56]} {[%emt 00:00:20]} Qg4 {[%clk 00:10:06]} {[%emt 00:02:32]}
17. exd6 {[%clk 00:08:02]} {[%emt 00:03:04]} Qd7 {[%clk 00:08:17]} {[%emt
00:02:00]} 18. Ne5 {[%clk 00:06:34]} {[%emt 00:01:37]} Qxd6 {[%clk 00:05:49]}
{[%emt 00:02:38]} 19. Qf5 {[%clk 00:05:21]} {[%emt 00:01:22]} Re7 {[%clk
00:04:17]} {[%emt 00:01:44]} 20. Nf3 {[%clk 00:04:40]} {[%emt 00:00:49]} Rde8
{[%clk 00:03:28]} {[%emt 00:01:00]} 21. Rxe7 {[%clk 00:04:33]} {[%emt
00:00:17]} Nxe7 {[%clk 00:02:32]} {[%emt 00:01:06]} 22. Qg4 {[%clk 00:04:04]}
{[%emt 00:00:39]} Ng6 {[%clk 00:02:18]} {[%emt 00:00:25]} 23. Re1 {[%clk
00:03:21]} {[%emt 00:00:52]} Rxe1+ {[%clk 00:02:11]} {[%emt 00:00:17]} 24. Nxe1
{[%clk 00:02:26]} {[%emt 00:01:06]} Qd5 {[%clk 00:02:02]} {[%emt 00:00:19]} 25.
b3 {[%clk 00:01:30]} {[%emt 00:01:07]} c5 {[%clk 00:01:43]} {[%emt 00:00:28]}
26. Nf3 {[%clk 00:01:12]} {[%emt 00:00:27]} c4 {[%clk 00:01:23]} {[%emt
00:00:31]} 27. b4 {[%clk 00:00:49]} {[%emt 00:00:33]} Bb7 {[%clk 00:01:10]}
{[%emt 00:00:23]} 28. h3 {[%clk 00:00:28]} {[%emt 00:00:31]} h6 {[%clk
00:00:43]} {[%emt 00:00:36]} 29. Qg3 {[%clk 00:00:26]} {[%emt 00:00:13]} Qd8
{[%clk 00:00:32]} {[%emt 00:00:21]} 30. Bf4 {[%clk 00:00:21]} {[%emt 00:00:14]}
Bxf3 {[%clk 00:00:33]} {[%emt 00:00:10]} 31. Qxf3 {[%clk 00:00:27]} {[%emt
00:00:04]} Qe8 {[%clk 00:00:38]} {[%emt 00:00:04]} 32. Bg3 {[%clk 00:00:23]}
{[%emt 00:00:15]} Qe1+ {[%clk 00:00:40]} {[%emt 00:00:08]} 33. Kh2 {[%clk
00:00:31]} {[%emt 00:00:02]} Qa1 {[%clk 00:00:35]} {[%emt 00:00:06]} 34. Qa8+
{[%clk 00:00:31]} {[%emt 00:00:18]} Kh7 {[%clk 00:00:44]} 35. Qxa7 {[%clk
00:00:35]} {[%emt 00:00:08]} b5 {[%clk 00:00:49]} {[%emt 00:00:05]} 36. Qxf7
{[%clk 00:00:25]} {[%emt 00:00:20]} Qxc3 {[%clk 00:00:46]} {[%emt 00:00:14]} 37.
d5 {[%clk 00:00:18]} {[%emt 00:00:16]} Qd3 {[%clk 00:00:40]} {[%emt 00:00:11]}
38. d6 {[%clk 00:00:18]} {[%emt 00:00:14]} c3 {[%clk 00:00:31]} {[%emt
00:00:20]} 39. Qc7 {[%clk 00:00:26]} {[%emt 00:00:01]} c2 {[%clk 00:00:24]}
{[%emt 00:00:17]} 40. d7 {[%clk 00:00:25]} {[%emt 00:00:11]} Qxd7 {[%clk
00:00:24]} {[%emt 00:00:10]} 41. Qxd7 {[%clk 00:00:33]} {[%emt 00:00:03]} c1=Q
{[%clk 00:00:28]} {[%emt 00:00:05]} 42. Qxb5 {[%clk 00:00:41]} {[%emt
00:00:03]} Qb2 {[%clk 00:00:26]} {[%emt 00:00:11]} 43. a4 {[%clk 00:00:47]}
{[%emt 00:00:05]} Ne7 {[%clk 00:00:23]} {[%emt 00:00:13]} 44. a5 {[%clk
00:00:49]} {[%emt 00:00:08]} Qb1 {[%clk 00:00:21]} {[%emt 00:00:11]} 45. Qc5
{[%clk 00:00:54]} {[%emt 00:00:05]} Nf5 {[%clk 00:00:28]} {[%emt 00:00:04]} 46.
b5 {[%clk 00:00:56]} {[%emt 00:00:09]} Qd3 {[%clk 00:00:17]} {[%emt 00:00:20]}
47. b6 {[%clk 00:00:42]} {[%emt 00:00:24]} Nd4 {[%clk 00:00:25]} {[%emt
00:00:02]} 48. b7 {[%clk 00:00:39]} {[%emt 00:00:12]} Ne2 {[%clk 00:00:15]}
{[%emt 00:00:19]} 49. b8=Q {[%clk 00:00:39]} {[%emt 00:00:11]} Qd1 {[%clk
00:00:14]} {[%emt 00:00:07]} 50. Qf5+ {[%clk 00:00:44]} {[%emt 00:00:08]} g6
{[%clk 00:00:00]} {[%emt 00:00:16]} 1-0

[Event "Velká cena Novohradska - A"]
[Site "Nové Hrady, Czech Republic"]
[Date "2024.10.12"]
[Round "6.5"]
[White "Borecký, Andrej"]
[Black "Hokr, Matyáš"]
[Result "1-0"]
[TimeControl "2x20min+10s/tah"]
[WhiteFideId "23752670"]
[BlackFideId "23734663"]
[WhiteElo "1778"]
[BlackElo "1534"]

1. e4 {[%clk 00:20:18]} e6 {[%clk 00:20:19]} 2. d4 {[%clk 00:20:24]} d5 {[%clk
00:20:24]} 3. exd5 {[%clk 00:20:32]} exd5 {[%clk 00:20:32]} 4. c4 {[%clk
00:20:40]} c6 {[%clk 00:20:39]} 5. Nc3 {[%clk 00:20:48]} Nf6 {[%clk 00:20:47]}
6. Bg5 {[%clk 00:20:52]} Bb4 {[%clk 00:20:52]} 7. Nf3 {[%clk 00:20:54]} O-O
{[%clk 00:20:57]} 8. Be2 {[%clk 00:20:45]} dxc4 {[%clk 00:21:00]} 9. Bxc4
{[%clk 00:19:55]} Qe8+ {[%clk 00:20:35]} 10. Qe2 {[%clk 00:16:31]} Qxe2+ {[%clk
00:20:01]} 11. Bxe2 {[%clk 00:16:01]} Ne4 {[%clk 00:19:57]} 12. Bd2 {[%clk
00:14:26]} Nxd2 {[%clk 00:18:20]} 13. Nxd2 {[%clk 00:14:07]} Re8 {[%clk
00:18:05]} 14. a3 {[%clk 00:13:45]} Bxc3 {[%clk 00:17:44]} 15. bxc3 {[%clk
00:13:53]} Bf5 {[%clk 00:17:47]} 16. Kd1 {[%clk 00:12:54]} Nd7 {[%clk
00:16:47]} 17. Nc4 {[%clk 00:11:57]} {[%emt 00:01:06]} Re6 {[%clk 00:16:10]}
{[%emt 00:00:46]} 18. g4 {[%clk 00:10:02]} {[%emt 00:02:05]} Bc2+ {[%clk
00:14:26]} {[%emt 00:01:54]} 19. Kd2 {[%clk 00:09:44]} {[%emt 00:00:28]} Bb3
{[%clk 00:14:08]} {[%emt 00:00:27]} 20. Bd3 {[%clk 00:08:27]} {[%emt 00:01:29]}
Nf6 {[%clk 00:12:47]} {[%emt 00:01:30]} 21. Rab1 {[%clk 00:06:14]} {[%emt
00:02:23]} Bxc4 {[%clk 00:12:49]} {[%emt 00:00:08]} 22. Bxc4 {[%clk 00:06:22]}
{[%emt 00:00:02]} Re7 {[%clk 00:12:58]} {[%emt 00:00:01]} 23. f3 {[%clk
00:06:05]} {[%emt 00:00:27]} b5 {[%clk 00:12:38]} {[%emt 00:00:30]} 24. Bd3
{[%clk 00:05:58]} {[%emt 00:00:17]} Nd5 {[%clk 00:12:31]} {[%emt 00:00:16]} 25.
Be4 {[%clk 00:05:53]} {[%emt 00:00:17]} a6 {[%clk 00:10:57]} {[%emt 00:01:43]}
26. Rhe1 {[%clk 00:04:27]} {[%emt 00:01:36]} Rae8 {[%clk 00:09:59]} {[%emt
00:01:08]} 27. Bxd5 {[%clk 00:04:06]} {[%emt 00:00:32]} cxd5 {[%clk 00:10:07]}
{[%emt 00:00:02]} 28. Rxe7 {[%clk 00:03:42]} {[%emt 00:00:34]} Rxe7 {[%clk
00:10:15]} {[%emt 00:00:02]} 29. a4 {[%clk 00:03:45]} {[%emt 00:00:07]} Rb7
{[%clk 00:10:12]} {[%emt 00:00:12]} 30. axb5 {[%clk 00:03:27]} {[%emt
00:00:28]} Kf8 {[%clk 00:09:52]} {[%emt 00:00:30]} 31. b6 {[%clk 00:02:53]}
{[%emt 00:00:44]} Ke7 {[%clk 00:10:00]} {[%emt 00:00:02]} 32. c4 {[%clk
00:02:23]} {[%emt 00:00:40]} dxc4 {[%clk 00:09:48]} {[%emt 00:00:22]} 33. Kc3
{[%clk 00:02:31]} {[%emt 00:00:03]} Kd6 {[%clk 00:09:53]} {[%emt 00:00:05]} 34.
Kxc4 {[%clk 00:02:25]} {[%emt 00:00:15]} a5 {[%clk 00:09:46]} {[%emt 00:00:17]}
35. Kb5 {[%clk 00:02:23]} {[%emt 00:00:13]} a4 {[%clk 00:09:21]} {[%emt
00:00:35]} 36. Ka6 {[%clk 00:01:59]} {[%emt 00:00:33]} Rb8 {[%clk 00:09:27]}
{[%emt 00:00:05]} 37. Ka7 {[%clk 00:02:07]} {[%emt 00:00:02]} Re8 {[%clk
00:09:23]} {[%emt 00:00:12]} 38. b7 {[%clk 00:01:44]} {[%emt 00:00:35]} Re7
{[%clk 00:09:29]} {[%emt 00:00:04]} 39. Ka8 {[%clk 00:01:33]} {[%emt 00:00:20]}
Re8+ {[%clk 00:09:25]} {[%emt 00:00:15]} 40. b8=Q+ {[%clk 00:01:38]} {[%emt
00:00:06]} Rxb8+ {[%clk 00:09:34]} 41. Kxb8 {[%clk 00:01:40]} {[%emt 00:00:08]}
Kd5 {[%clk 00:09:41]} {[%emt 00:00:02]} 42. Ra1 {[%clk 00:01:50]} {[%emt
00:00:01]} Kxd4 {[%clk 00:09:49]} 43. Rxa4+ {[%clk 00:01:58]} {[%emt 00:00:02]}
Ke3 {[%clk 00:09:58]} {[%emt 00:00:01]} 44. Ra7 {[%clk 00:02:05]} {[%emt
00:00:04]} Kxf3 {[%clk 00:10:06]} {[%emt 00:00:02]} 45. Rxf7+ {[%clk 00:02:13]}
{[%emt 00:00:02]} g5 {[%clk 00:10:12]} {[%emt 00:00:04]} 1-0

[Event "Velká cena Novohradska - A"]
[Site "Nové Hrady, Czech Republic"]
[Date "2024.10.12"]
[Round "6.6"]
[White "Ponomarenko, Marko"]
[Black "Čech, Nicolas"]
[Result "1-0"]
[TimeControl "2x20min+10s/tah"]
[WhiteFideId "23777931"]
[BlackFideId "23764228"]
[WhiteElo "1498"]
[BlackElo "1626"]

1. e4 {[%clk 00:20:19]} c6 {[%clk 00:20:16]} 2. d4 {[%clk 00:20:26]} d5 {[%clk
00:20:25]} 3. Nc3 dxe4 4. Nxe4 Bf5 5. Ng3 Bg6 6. Nf3 Nf6 7. Bc4 e6 8. Bg5 Nbd7
9. O-O {[%clk 00:20:33]} Be7 {[%clk 00:20:27]} 10. Re1 {[%clk 00:20:43]} O-O 11.
c3 h6 {[%clk 00:19:54]} 12. Be3 {[%clk 00:20:42]} Nd5 {[%clk 00:19:44]} 13.
Bxd5 {[%clk 00:20:25]} cxd5 {[%clk 00:19:52]} 14. Ne5 {[%clk 00:20:07]} Nxe5
{[%clk 00:18:48]} 15. dxe5 {[%clk 00:20:14]} a6 {[%clk 00:18:21]} 16. Qb3
{[%clk 00:20:12]} b5 {[%clk 00:18:06]} 17. Rad1 {[%clk 00:20:06]} Qc7 {[%clk
00:17:44]} 18. Bd4 {[%clk 00:19:44]} Qc4 {[%clk 00:17:25]} 19. Qxc4 {[%clk
00:19:35]} bxc4 {[%clk 00:17:32]} 20. Ne2 {[%clk 00:19:17]} Rfb8 {[%clk
00:17:40]} 21. Rd2 {[%clk 00:19:04]} a5 {[%clk 00:17:21]} 22. a3 {[%clk
00:19:07]} Rb7 {[%clk 00:17:14]} 23. Nf4 {[%clk 00:19:12]} Bh7 {[%clk
00:17:03]} 24. Ree2 {[%clk 00:19:18]} Bxa3 {[%clk 00:16:30]} 25. h4 {[%clk
00:18:46]} Be7 {[%clk 00:16:33]} 26. g3 {[%clk 00:18:44]} Rab8 {[%clk
00:16:17]} 27. Kh2 {[%clk 00:18:33]} g5 {[%clk 00:15:50]} 28. Nh3 {[%clk
00:18:25]} Bd3 {[%clk 00:15:49]} 29. Re3 {[%clk 00:18:11]} Rxb2 {[%clk
00:15:37]} 30. Rxb2 {[%clk 00:18:19]} Rxb2 {[%clk 00:15:44]} 31. hxg5 {[%clk
00:18:17]} {[%emt 00:00:07]} Bxg5 {[%clk 00:15:13]} {[%emt 00:00:41]} 32. Nxg5
{[%clk 00:18:08]} {[%emt 00:00:19]} hxg5 {[%clk 00:14:51]} {[%emt 00:00:31]} 33.
Rf3 {[%clk 00:18:00]} {[%emt 00:00:18]} Be4 {[%clk 00:14:39]} {[%emt 00:00:23]}
34. Rf6 {[%clk 00:18:06]} {[%emt 00:00:03]} Rxf2+ {[%clk 00:14:34]} {[%emt
00:00:16]} 35. Rxf2 {[%clk 00:18:12]} {[%emt 00:00:03]} 1-0

[Event "Velká cena Novohradska - A"]
[Site "Nové Hrady, Czech Republic"]
[Date "2024.10.12"]
[Round "6.7"]
[White "Hejda, Ondřej"]
[Black "Mountassir, Karim"]
[Result "1-0"]
[TimeControl "2x20min+10s/tah"]
[WhiteFideId "23713623"]
[BlackFideId "23746327"]
[WhiteElo "1702"]
[BlackElo "1614"]

1. e4 {[%clk 00:20:17]} {[%emt 00:00:02]} e5 {[%clk 00:20:18]} 2. Nf3 {[%clk
00:20:15]} Nc6 {[%clk 00:20:26]} 3. Nc3 {[%clk 00:20:15]} Bc5 {[%clk 00:20:13]}
4. Bc4 {[%clk 00:20:05]} d6 {[%clk 00:20:10]} 5. d3 {[%clk 00:20:12]} h6 {[%clk
00:20:06]} 6. Bd2 {[%clk 00:19:44]} Nf6 {[%clk 00:19:58]} 7. h3 {[%clk
00:19:49]} Be6 {[%clk 00:19:46]} 8. Bb3 {[%clk 00:19:50]} Nd7 {[%clk 00:18:48]}
9. Qe2 {[%clk 00:18:50]} O-O {[%clk 00:16:27]} 10. O-O {[%clk 00:18:23]} Qe7
{[%clk 00:16:19]} 11. Be3 {[%clk 00:17:00]} Bb6 {[%clk 00:16:08]} 12. Rad1
{[%clk 00:17:02]} f5 {[%clk 00:14:25]} 13. d4 {[%clk 00:16:11]} Bxb3 {[%clk
00:13:37]} 14. axb3 {[%clk 00:16:15]} fxe4 {[%clk 00:12:55]} 15. Nxe4 {[%clk
00:16:11]} exd4 {[%clk 00:12:12]} {[%emt 00:00:24]} 16. Bxd4 {[%clk 00:15:17]}
{[%emt 00:01:04]} Nxd4 {[%clk 00:11:55]} {[%emt 00:00:27]} 17. Nxd4 {[%clk
00:15:17]} {[%emt 00:00:10]} d5 {[%clk 00:11:47]} {[%emt 00:00:17]} 18. Ng3
{[%clk 00:14:50]} {[%emt 00:00:37]} Qxe2 {[%clk 00:11:36]} {[%emt 00:00:21]} 19.
Ndxe2 {[%clk 00:14:49]} {[%emt 00:00:12]} c6 {[%clk 00:11:41]} {[%emt
00:00:06]} 20. c4 {[%clk 00:14:13]} {[%emt 00:00:46]} Nf6 {[%clk 00:11:36]}
{[%emt 00:00:15]} 21. Nf4 {[%clk 00:13:02]} {[%emt 00:01:18]} Rfd8 {[%clk
00:08:43]} {[%emt 00:03:04]} 22. Rfe1 {[%clk 00:12:30]} {[%emt 00:00:43]} Kf7
{[%clk 00:08:38]} {[%emt 00:00:14]} 23. Nf5 {[%clk 00:12:13]} {[%emt 00:00:24]}
Rd7 {[%clk 00:08:14]} {[%emt 00:00:38]} 24. Ne6 {[%clk 00:11:24]} {[%emt
00:00:57]} Kg6 {[%clk 00:07:43]} {[%emt 00:00:42]} 25. Ng3 {[%clk 00:10:16]}
{[%emt 00:01:18]} Re8 {[%clk 00:06:38]} {[%emt 00:01:16]} 26. Nf4+ {[%clk
00:09:58]} {[%emt 00:00:25]} Kf7 {[%clk 00:06:13]} {[%emt 00:00:38]} 27. cxd5
{[%clk 00:08:43]} {[%emt 00:01:24]} cxd5 {[%clk 00:05:49]} {[%emt 00:00:34]} 28.
Nd3 {[%clk 00:08:06]} {[%emt 00:00:48]} Rxe1+ {[%clk 00:04:55]} {[%emt
00:01:05]} 29. Rxe1 {[%clk 00:08:11]} {[%emt 00:00:04]} Re7 {[%clk 00:04:21]}
{[%emt 00:00:44]} 30. Rd1 {[%clk 00:07:44]} {[%emt 00:00:36]} Kf8 {[%clk
00:02:49]} {[%emt 00:01:43]} 31. Rc1 {[%clk 00:07:38]} {[%emt 00:00:15]} Rc7
{[%clk 00:02:34]} {[%emt 00:00:25]} 32. Rxc7 {[%clk 00:07:17]} {[%emt
00:00:32]} Bxc7 {[%clk 00:02:42]} {[%emt 00:00:02]} 33. Nf5 {[%clk 00:06:51]}
{[%emt 00:00:32]} Kf7 {[%clk 00:01:50]} {[%emt 00:01:06]} 34. Kf1 {[%clk
00:05:40]} {[%emt 00:01:21]} Bb6 {[%clk 00:01:19]} {[%emt 00:00:41]} 35. Ke2
{[%clk 00:05:19]} {[%emt 00:00:30]} Bc7 {[%clk 00:00:14]} {[%emt 00:01:15]} 36.
f3 {[%clk 00:05:10]} {[%emt 00:00:19]} Kg6 {[%clk 00:00:16]} {[%emt 00:00:07]}
37. Nd4 {[%clk 00:04:50]} {[%emt 00:00:29]} Bb6 {[%clk 00:00:00]} {[%emt
00:00:21]} 1-0

[Event "Velká cena Novohradska - A"]
[Site "Nové Hrady, Czech Republic"]
[Date "2024.10.12"]
[Round "7.1"]
[White "Garabik, Marek"]
[Black "Rendl, Luboš"]
[Result "1-0"]
[TimeControl "2x20min+10s/tah"]
[WhiteFideId "23717742"]
[BlackFideId "23750197"]
[WhiteElo "1925"]
[BlackElo "1860"]

1. e4 {[%clk 00:20:19]} c6 {[%clk 00:20:13]} {[%emt 00:00:08]} 2. d4 {[%clk
00:20:28]} {[%emt 00:00:02]} d5 {[%clk 00:20:22]} 3. exd5 {[%clk 00:20:37]}
cxd5 {[%clk 00:20:31]} 4. c3 {[%clk 00:20:43]} {[%emt 00:00:06]} Bf5 {[%clk
00:20:36]} {[%emt 00:00:05]} 5. Nf3 {[%clk 00:20:46]} {[%emt 00:00:07]} Nc6
{[%clk 00:20:45]} {[%emt 00:00:01]} 6. Bd3 {[%clk 00:20:52]} {[%emt 00:00:05]}
Bxd3 {[%clk 00:20:52]} {[%emt 00:00:02]} 7. Qxd3 {[%clk 00:21:01]} e6 {[%clk
00:21:00]} {[%emt 00:00:03]} 8. Bf4 {[%clk 00:21:10]} Bd6 {[%clk 00:20:42]}
{[%emt 00:00:29]} 9. Bxd6 {[%clk 00:21:18]} Qxd6 {[%clk 00:20:50]} 10. O-O
{[%clk 00:21:25]} {[%emt 00:00:06]} Nf6 {[%clk 00:20:58]} {[%emt 00:00:02]} 11.
Nbd2 {[%clk 00:21:31]} {[%emt 00:00:04]} O-O {[%clk 00:21:02]} {[%emt
00:00:05]} 12. Rae1 {[%clk 00:21:35]} {[%emt 00:00:07]} h6 {[%clk 00:20:31]}
{[%emt 00:00:41]} 13. Ne5 {[%clk 00:21:41]} {[%emt 00:00:04]} Nd7 {[%clk
00:20:24]} {[%emt 00:00:17]} 14. f4 {[%clk 00:21:41]} {[%emt 00:00:11]} a6
{[%clk 00:19:40]} {[%emt 00:00:53]} 15. Re3 {[%clk 00:21:32]} {[%emt 00:00:18]}
f5 {[%clk 00:18:08]} {[%emt 00:01:42]} 16. Nxd7 {[%clk 00:21:15]} {[%emt
00:00:27]} Qxd7 {[%clk 00:18:10]} {[%emt 00:00:08]} 17. Rfe1 {[%clk 00:21:24]}
Rf6 {[%clk 00:17:42]} {[%emt 00:00:40]} 18. Qe2 {[%clk 00:21:30]} {[%emt
00:00:04]} Re8 {[%clk 00:17:07]} {[%emt 00:00:45]} 19. Nf3 {[%clk 00:21:12]}
{[%emt 00:00:28]} Qc7 {[%clk 00:16:47]} {[%emt 00:00:30]} 20. Ne5 {[%clk
00:20:23]} {[%emt 00:00:59]} Nxe5 {[%clk 00:16:44]} {[%emt 00:00:14]} 21. Rxe5
{[%clk 00:20:20]} {[%emt 00:00:12]} Qb6 {[%clk 00:16:31]} {[%emt 00:00:23]} 22.
Rxd5 {[%clk 00:19:27]} {[%emt 00:01:04]} exd5 {[%clk 00:16:35]} {[%emt
00:00:05]} 23. Qxe8+ {[%clk 00:19:35]} Kh7 {[%clk 00:16:44]} 24. Qe2 {[%clk
00:19:38]} {[%emt 00:00:10]} Rg6 {[%clk 00:16:38]} {[%emt 00:00:16]} 25. b3
{[%clk 00:18:49]} {[%emt 00:00:59]} Qc7 {[%clk 00:16:37]} {[%emt 00:00:10]} 26.
Qd2 {[%clk 00:18:21]} {[%emt 00:00:38]} Rg4 {[%clk 00:16:38]} {[%emt 00:00:09]}
27. Rf1 {[%clk 00:18:24]} {[%emt 00:00:09]} h5 {[%clk 00:16:17]} {[%emt
00:00:29]} 28. h3 {[%clk 00:18:02]} {[%emt 00:00:33]} Rg3 {[%clk 00:16:24]}
{[%emt 00:00:03]} 29. Rc1 {[%clk 00:17:27]} {[%emt 00:00:45]} g6 {[%clk
00:16:12]} {[%emt 00:00:22]} 30. c4 {[%clk 00:16:31]} {[%emt 00:01:06]} dxc4
{[%clk 00:15:14]} {[%emt 00:01:08]} 31. bxc4 {[%clk 00:15:48]} {[%emt
00:00:54]} Qe7 {[%clk 00:15:03]} {[%emt 00:00:20]} 32. Re1 {[%clk 00:13:07]}
{[%emt 00:02:50]} Qa3 {[%clk 00:15:01]} {[%emt 00:00:12]} 33. Qe2 {[%clk
00:12:23]} {[%emt 00:00:55]} Kh6 {[%clk 00:14:23]} {[%emt 00:00:48]} 34. Qe8
{[%clk 00:11:52]} {[%emt 00:00:41]} Rxg2+ {[%clk 00:13:32]} {[%emt 00:01:01]}
35. Kxg2 {[%clk 00:11:59]} {[%emt 00:00:03]} Qxa2+ {[%clk 00:13:40]} {[%emt
00:00:02]} 36. Re2 {[%clk 00:12:06]} {[%emt 00:00:03]} 1-0